{"text_format":"1","workbook":"xlsx","n_sheets":1,"sheets":["Sheet1"],"not_rendered":{"charts":0,"images":0,"macros":1,"external_links":0,"defined_names":2,"comments":1,"pivot_tables":0},"unopened":[],"bounds":{"document_bytes":16777216,"sheet_cells":100000,"rows_first":2000,"rows_last":500,"rows_between":2000,"halvings":0,"cell_chars":16384,"cell_head_chars":4096},"cells_cut":0,"cells_raw":0,"read":"whole","date_system":"1900"}

{"sheet":"Sheet1","index":0,"n_rows":23,"n_cols":21,"rows_kept":23,"cut":false,"hidden":false,"merged":[[0,11,0,13],[0,8,0,9],[0,15,0,17],[0,19,0,21],[0,0,0,2]]}
["NumSign",null,null,null,"User",null,"SayIt",null,"Commission",null,null,"Commission2",null,null,null,"TopAvg",null,null,null,"ExtractElement"]
[15,{"$f":"NumSign(A2)","v":"Positive"},{"$f":"IF(ISNUMBER(A2),IF(A2=0,\"Zero\",IF(A2>0,\"Positive\",\"Negative\")),\"\")","v":"Positive"},null,{"$f":"user()","v":"Dick Kusleika"},null,"=Sayit(\"Hello \" &E2)",null,"Sales","Comm'n",null,"Sales","Yrs","Comm'n",null,"Data","Top n","Avg",null,"423-93-9233",{"$f":"EXTRACTELEMENT(T2,2,\"-\")","v":"93"}]
[-44,"Negative",{"$f":"IF(ISNUMBER(A3),IF(A3=0,\"Zero\",IF(A3>0,\"Positive\",\"Negative\")),\"\")","v":"Negative"},null,null,null,null,null,5090,{"$f":"Commission(I3)","v":407.2},null,5090,1,{"$f":"Commission2(L3,M3)","v":411.27199999999999},null,977,5,{"$f":"TopAvg(Data,Q3)","v":905.8},null,"933-81-0092",{"$f":"EXTRACTELEMENT(T3,2,\"-\")","v":"81"}]
[0,"Zero","Zero",null,null,null,null,null,9833,786.64,null,9833,3,810.23919999999998,null,966,10,{"$f":"TopAvg(Data,Q4)","v":813.1},null,"183-93-3955",{"$f":"EXTRACTELEMENT(T4,2,\"-\")","v":"93"}]
[43,"Positive","Positive",null,null,null,null,null,12093,1269.7649999999999,null,12093,5,1333.2532499999998,null,943,1,{"$f":"TopAvg(Data,Q5)","v":977},null,"835-02-8133",{"$f":"EXTRACTELEMENT(T5,2,\"-\")","v":"02"}]
[6,"Positive","Positive",null,null,null,null,null,24091,2890.92,null,24091,2,2948.7384000000002,null,824,21,{"$f":"TopAvg(Data,Q6)","v":616.95238095238096},null,"Joe Smith",{"$f":"EXTRACTELEMENT(T6,1,\" \")","v":"Joe"}]
["text",{"$f":"NumSign(A7)","v":""},"",null,null,null,null,null,55090,7712.6,null,55090,8,8329.6080000000002,null,819,null,null,null,"Linda Miller",{"$f":"EXTRACTELEMENT(T7,1,\" \")","v":"Linda"}]
[-0.43,"Negative","Negative",null,null,null,null,null,68721,9620.94,null,68721,12,10775.452800000001,null,802]
[null,null,null,null,null,null,null,null,null,null,null,null,null,null,null,743]
[null,null,null,null,null,null,null,null,null,null,null,null,null,null,null,712]
[null,null,null,null,null,null,null,null,null,null,null,null,null,null,null,675]
[null,null,null,null,null,null,null,null,null,null,null,null,null,null,null,670]
[null,null,null,null,null,null,null,null,null,null,null,null,null,null,null,633]
[null,null,null,null,null,null,null,null,null,null,null,null,null,null,null,617]
[null,null,null,null,null,null,null,null,null,null,null,null,null,null,null,617]
[null,null,null,null,null,null,null,null,null,null,null,null,null,null,null,600]
[null,null,null,null,null,null,null,null,null,null,null,null,null,null,null,557]
[null,null,null,null,null,null,null,null,null,null,null,null,null,null,null,531]
[null,null,null,null,null,null,null,null,null,null,null,null,null,null,null,487]
[null,null,null,null,null,null,null,null,null,null,null,null,null,null,null,327]
[null,null,null,null,null,null,null,null,null,null,null,null,null,null,null,291]
[null,null,null,null,null,null,null,null,null,null,null,null,null,null,null,128]
[null,null,null,null,null,null,null,null,null,null,null,null,null,null,null,37]